bitfinex-derivatives/quotes_SOLF0:USTF0_20241025
["timestamp","ask_amount","ask_price","bid_price","bid_amount"]
[1729877953648,17.08901981,169.87,169.83,2.945]
[1729877953844,14.14451981,169.87,169.82,2.9451]
[1729877954340,2.9446,169.86,169.78,5.36]
[1729877954540,14.14451981,169.87,169.78,5.36]
[1729877954741,2.9447,169.86,169.78,5.36]
[1729877955137,2.9447,169.86,169.83,2.9451]
[1729877955546,2.9446,169.86,169.83,2.9451]
[1729877955840,14.14451981,169.87,169.83,2.9451]
[1729877956045,17.08891981,169.87,169.83,2.9451]
[1729877956934,14.14451981,169.85,169.78,5.36]
[1729877957550,14.14451981,169.85,169.76,5.36]
[1729877958137,17.08971981,169.83,169.79,2.9457]
[1729877958334,17.08971981,169.83,169.76,5.36]
[1729877958648,17.08971981,169.83,169.8,2.9455]
[1729877960948,14.14451981,169.83,169.8,2.9455]
[1729877961150,14.14451981,169.83,169.76,5.36]
[1729877961151,2.945,169.84,169.78,2.9459]
[1729877961347,2.945,169.84,169.76,5.36]
[1729877961539,14.14451981,169.85,169.76,5.36]
[1729877963253,14.14451981,169.85,169.83,2.945]
[1729877964548,14.14451981,169.85,169.76,5.36]
[1729877964745,2.9451,169.83,169.8,2.9456]
[1729877964948,14.14451981,169.85,169.8,2.9456]
[1729877965152,2.9451,169.84,169.8,2.9456]
[1729877965549,14.14451981,169.82,169.79,2.9457]
[1729877965959,2.9456,169.81,169.75,1.2971]
[1729877967652,14.14451981,169.82,169.77,2.946]
[1729877968355,2.9456,169.81,169.78,2.9459]
[1729877968956,14.14451981,169.82,169.78,2.9459]
[1729877969150,17.08981981,169.82,169.78,2.9459]
[1729877969351,14.14451981,169.85,169.76,5.36]
[1729877969846,2.9449,169.84,169.76,5.36]
[1729877970045,2.9449,169.84,169.8,2.9455]
[1729877970448,5.36,169.87,169.76,5.36]
[1729877970449,2.9456,169.81,169.76,5.36]
[1729877970660,14.14451981,169.8,169.77,2.946]
[1729877970956,14.14451981,169.78,169.48,54.39808676]
[1729877971159,5.36,169.79,169.48,54.39808676]
[1729877971160,14.14451981,169.7,169.61,2.5447]
[1729877971363,14.14451981,169.67,169.62,1.08300283]
[1729877971551,14.14451981,169.65,169.57,5.36]
[1729877971948,2.9485,169.64,169.59,2.9491]
[1729877972265,14.14451981,169.65,169.57,5.36]
[1729877972459,2.9485,169.64,169.6,2.9491]
[1729877972760,14.14451981,169.61,169.51,32.63885206]
[1729877972966,14.14451981,169.56,169.51,32.63885206]
[1729877973956,14.14451981,169.64,169.51,32.63885206]
[1729877973957,14.14451981,169.53,169.51,32.63885206]
[1729877974354,25.61271295,169.55,169.51,32.63885206]
[1729877974562,22.66271295,169.52,169.48,54.39808676]
[1729877974769,22.66271295,169.55,169.48,54.39808676]
[1729877974952,7.64900818,169.54,169.48,54.39808676]
[1729877975151,2.9502,169.54,169.48,54.39808676]
[1729877975364,22.66271295,169.55,169.42,5.36]
[1729877975760,2.9502,169.54,169.45,2.9515]
[1729877975961,2.9502,169.54,169.42,5.36]
[1729877976150,22.66271295,169.55,169.42,5.36]
[1729877976347,5.36,169.56,169.42,5.36]
[1729877976548,8.3099,169.56,169.42,5.36]
[1729877977157,5.36,169.56,169.5,2.9507]
[1729877977655,22.66271295,169.57,169.47,5.36]
[1729877977863,22.66271295,169.57,169.51,2.9505]
[1729877978063,22.66271295,169.6,169.47,5.36]
[1729877978251,5.36,169.62,169.48,1.2138]
[1729877978453,25.61161295,169.61,169.54,2.95]
[1729877978961,22.66271295,169.61,169.52,5.36]
[1729877979460,22.66271295,169.64,169.52,5.36]
[1729877979662,25.61121295,169.64,169.58,2.9494]
[1729877979853,22.66271295,169.64,169.52,5.36]
[1729877981256,25.61071295,169.67,169.53,22.66271295]
[1729877981453,22.66271295,169.67,169.53,22.66271295]
[1729877982260,22.66271295,169.67,169.64,2.9483]
[1729877982455,22.66271295,169.7,169.61,5.36]
[1729877982759,22.66271295,169.7,169.62,5.36]
[1729877983373,2.9477,169.69,169.63,2.9484]
[1729877983865,2.9477,169.69,169.64,2.9484]
[1729877984053,22.66271295,169.7,169.62,5.36]
[1729877984660,2.9472,169.71,169.62,5.36]
[1729877984964,2.947,169.72,169.62,5.36]
[1729877985665,2.947,169.72,169.65,2.9482]
[1729877985863,22.66271295,169.73,169.62,5.36]
[1729877986061,22.66271295,169.69,169.62,5.36]
[1729877986372,22.66271295,169.67,169.55,63.68]
[1729877986561,2.9486,169.63,169.56,5.36]
[1729877986758,22.66271295,169.64,169.55,63.68]
[1729877987063,2.9486,169.63,169.56,5.36]
[1729877987259,22.66271295,169.64,169.56,5.36]
[1729877988665,25.61111295,169.64,169.59,2.9492]
[1729877989767,25.61111295,169.64,169.6,2.9491]
[1729877990468,2.9486,169.63,169.58,2.9493]
[1729877990971,22.66271295,169.64,169.58,2.9493]
[1729877991664,2.9486,169.63,169.56,5.36]
[1729877992565,22.66271295,169.64,169.56,5.36]
[1729877992768,22.66271295,169.64,169.55,69.04]
[1729877994068,2.9487,169.63,169.58,2.9494]
[1729877994673,22.66271295,169.64,169.55,69.04]
[1729877994877,25.61111295,169.64,169.6,2.9491]
[1729877995474,22.66271295,169.64,169.6,2.949]
[1729877996163,22.66271295,169.73,169.55,69.04]
[1729877996164,22.66271295,169.67,169.55,69.04]
[1729877996360,2.9481,169.66,169.55,69.04]
[1729877996780,22.66271295,169.7,169.55,91.70271295]
[1729877996965,5.36,169.7,169.55,91.70271295]
[1729877997284,28.02271295,169.73,169.66,2.9479]
[1729877997470,28.02271295,169.73,169.63,5.36]
[1729877997774,28.02271295,169.73,169.65,2.9482]
[1729877998163,28.02271295,169.73,169.63,5.36]
[1729877998373,28.02271295,169.73,169.67,2.9477]
[1729877999072,22.66271295,169.73,169.67,2.9477]
[1729877999269,2.947,169.72,169.67,2.9477]
[1729877999583,2.947,169.72,169.63,5.36]
[1729878000068,2.947,169.72,169.67,2.9477]
[1729878000468,2.9472,169.71,169.67,2.9477]
[1729878000865,22.66271295,169.73,169.63,5.36]
[1729878001076,22.66271295,169.67,169.59,1.273]
[1729878001384,22.66271295,169.65,169.59,9.5821]
[1729878001683,2.949,169.61,169.56,7.9348]
[1729878002072,2.9488,169.62,169.58,2.9494]
[1729878002270,2.9488,169.62,169.56,7.9348]
[1729878002473,22.66271295,169.65,169.56,7.9348]
[1729878002773,2.9488,169.62,169.58,2.9493]
[1729878004078,2.9486,169.63,169.6,2.949]
[1729878004480,22.66271295,169.68,169.6,2.949]
[1729878004775,22.66271295,169.73,169.61,5.36]
[1729878004979,5.36,169.74,169.62,6.5556]
[1729878005274,2.9473,169.71,169.62,6.5556]
[1729878005474,5.36,169.75,169.62,6.5556]
[1729878005680,2.947,169.72,169.68,2.9477]
[1729878006283,2.9474,169.71,169.67,2.9478]
[1729878006484,5.36,169.75,169.65,5.36]
[1729878006981,22.66271295,169.73,169.63,5.36]
[1729878007479,22.66271295,169.7,169.61,5.36]
[1729878008285,2.948,169.67,169.63,2.9485]
[1729878008484,22.66271295,169.7,169.57,1.2676]
[1729878008677,22.66271295,169.63,169.57,1.2676]
[1729878010482,5.36,169.67,169.57,1.2676]
[1729878010784,2.9478,169.68,169.64,2.9484]
[1729878011083,5.36,169.7,169.58,5.36]
[1729878012080,5.36,169.7,169.57,1.2676]
[1729878012288,5.36,169.7,169.57,6.6276]
[1729878012776,2.948,169.67,169.6,2.9489]
[1729878012983,5.36,169.7,169.6,2.9489]
[1729878013281,5.36,169.7,169.57,6.6276]
[1729878013282,2.9476,169.69,169.64,2.9483]
[1729878013486,22.66271295,169.73,169.58,22.66271295]
[1729878013784,5.36,169.71,169.58,22.66271295]
[1729878014281,2.9477,169.68,169.64,2.9483]
[1729878015477,2.9481,169.66,169.62,2.9486]
[1729878016183,22.66271295,169.73,169.66,2.948]
[1729878016184,2.9476,169.69,169.66,2.948]
[1729878016590,2.9472,169.71,169.61,22.66271295]
[1729878016786,2.9472,169.71,169.6,5.36]
[1729878017088,2.9474,169.7,169.66,2.9479]
[1729878017484,2.9474,169.7,169.6,5.36]
[1729878017685,5.36,169.77,169.65,22.66271295]
[1729878017886,5.36,169.77,169.66,9.1256]
[1729878018085,5.36,169.78,169.66,9.1256]
[1729878018685,2.9468,169.74,169.7,2.9473]
[1729878018889,22.66271295,169.76,169.66,3.7656]
[1729878019598,2.9473,169.71,169.67,2.9478]
[1729878019785,22.66271295,169.73,169.59,22.66271295]
[1729878019982,22.66271295,169.7,169.6,5.36]
[1729878020291,22.66271295,169.7,169.61,5.36]
[1729878020686,22.66271295,169.7,169.58,2.4533]
[1729878020893,22.66271295,169.67,169.59,2.9492]
[1729878021588,2.9483,169.65,169.61,2.9489]
[1729878022290,22.66271295,169.67,169.58,2.4533]
[1729878022693,22.66271295,169.67,169.59,2.9492]
[1729878023699,2.9484,169.65,169.61,2.9488]
[1729878023995,5.36,169.68,169.58,2.4533]
[1729878024187,22.66271295,169.7,169.58,2.4533]
[1729878024386,2.948,169.67,169.58,2.4533]
[1729878024886,5.36,169.71,169.58,2.4533]
[1729878025088,22.66271295,169.72,169.59,22.66271295]
[1729878025289,28.02271295,169.76,169.66,2.948]
[1729878025488,2.9472,169.71,169.65,5.36]
[1729878026297,2.9472,169.71,169.67,2.9478]
[1729878029501,2.9479,169.67,169.64,5.36]
[1729878030400,22.66271295,169.73,169.64,5.36]
[1729878030601,22.66271295,169.7,169.63,5.36]
[1729878030901,22.66271295,169.7,169.6,5.36]
[1729878031096,22.66271295,169.67,169.59,5.36]
[1729878031601,2.9491,169.61,169.57,2.9495]
[1729878032111,2.9491,169.61,169.58,2.9494]
[1729878032402,2.9487,169.63,169.55,5.36]
[1729878032802,2.9487,169.63,169.59,2.9491]
[1729878033199,22.66271295,169.64,169.52,3.8157]
[1729878033497,5.36,169.66,169.46,63.68]
[1729878033703,2.9496,169.58,169.47,32.80737637]
[1729878033999,22.66271295,169.62,169.48,1.08396342]
[1729878034300,22.66271295,169.59,169.52,2.9504]
[1729878034601,28.02271295,169.66,169.39,5.36]
[1729878034602,22.66271295,169.53,169.39,5.36]
[1729878034803,2.9509,169.5,169.45,2.9517]
[1729878035101,2.9509,169.5,169.41,2.4669]
[1729878035102,28.02271295,169.53,169.41,2.4669]
[1729878035295,28.02271295,169.53,169.33,22.66271295]
[1729878035296,22.66271295,169.5,169.33,22.66271295]
[1729878035503,5.36,169.53,169.38,2.9529]
[1729878035504,22.66271295,169.47,169.38,2.9529]
[1729878035807,5.36,169.46,169.38,2.9529]
[1729878036207,2.9519,169.44,169.35,7.8269]
[1729878036503,5.36,169.46,169.35,7.8269]
[1729878036714,2.9521,169.43,169.35,7.8269]
[1729878037009,5.36,169.46,169.35,7.8269]
[1729878037204,2.9521,169.43,169.35,7.8269]
[1729878037510,5.36,169.46,169.37,2.9529]
[1729878037701,2.9526,169.4,169.32,5.36]
[1729878038014,2.9526,169.4,169.34,4.77436446]
[1729878038199,5.36,169.41,169.34,1.82076446]
[1729878038508,5.36,169.4,169.34,1.82076446]
[1729878039696,8.3126,169.4,169.34,1.82076446]
[1729878039911,5.36,169.4,169.34,1.82076446]
[1729878040214,8.3126,169.4,169.34,1.82076446]
[1729878040406,2.9526,169.4,169.34,1.82076446]
[1729878040600,2.9526,169.4,169.34,4.77426446]
[1729878040912,2.9525,169.41,169.34,1.82076446]
[1729878041211,2.9525,169.41,169.35,2.9533]
[1729878041504,5.36,169.45,169.34,1.82076446]
[1729878041995,22.66271295,169.47,169.34,1.82076446]
[1729878042199,22.66271295,169.5,169.36,22.66271295]
[1729878042395,28.06271295,169.5,169.36,22.66271295]
[1729878043206,22.66271295,169.5,169.37,5.4]
[1729878043604,25.61361295,169.5,169.38,1.2604]
[1729878043912,22.66271295,169.53,169.46,2.9514]
[1729878044104,2.9508,169.5,169.43,5.4]
[1729878044707,2.9508,169.5,169.45,2.9516]
[1729878044908,2.9507,169.51,169.43,5.4]
[1729878045611,2.9507,169.51,169.46,2.9514]
[1729878045812,2.9511,169.49,169.43,5.4]
[1729878046420,2.9509,169.5,169.43,5.4]
[1729878046609,28.06271295,169.53,169.43,5.4]
[1729878047308,22.66271295,169.53,169.43,5.4]
[1729878048913,2.9508,169.51,169.46,2.9514]
[1729878049415,2.9508,169.51,169.39,23.98391295]
[1729878049416,2.9521,169.43,169.39,4.2738]
[1729878049728,22.66271295,169.44,169.38,1.2604]
[1729878050014,2.9521,169.43,169.38,4.2132]
[1729878050212,22.66271295,169.44,169.38,1.2604]
[1729878050418,22.66271295,169.44,169.35,5.4]
[1729878050611,2.9526,169.4,169.35,8.3534]
[1729878050813,22.66271295,169.41,169.35,5.4]
[1729878052122,22.66271295,169.41,169.34,1.82076446]
[1729878052923,22.66271295,169.38,169.34,1.82076446]
[1729878053918,2.9531,169.37,169.34,1.82076446]
[1729878054710,25.61561295,169.38,169.34,1.82076446]
[1729878054920,22.66271295,169.38,169.34,1.82076446]
[1729878055214,2.9531,169.37,169.34,1.82076446]
[1729878055516,22.66271295,169.38,169.34,1.82076446]
[1729878055815,2.9534,169.35,169.34,1.82076446]
[1729878056416,22.66271295,169.38,169.34,1.82076446]
[1729878056826,2.9534,169.36,169.34,1.82076446]
[1729878057230,22.66271295,169.38,169.34,1.82076446]
[1729878057424,25.61581295,169.38,169.34,1.82076446]
[1729878057624,22.66271295,169.38,169.34,1.82076446]
[1729878058216,22.66271295,169.38,169.34,4.77436446]
[1729878058420,22.66271295,169.38,169.34,1.82076446]
[1729878058620,2.9534,169.36,169.34,1.82076446]
[1729878058824,22.66271295,169.38,169.34,1.82076446]
[1729878059128,22.66271295,169.35,169.26,2.4268]
[1729878059325,2.9539,169.33,169.29,2.9545]
[1729878059826,2.9539,169.33,169.26,2.4268]
[1729878060027,2.9536,169.34,169.29,2.9544]
[1729878060333,2.9536,169.34,169.26,2.4268]
[1729878060334,22.66271295,169.35,169.26,2.4268]
[1729878060520,25.61631295,169.35,169.29,2.9544]
[1729878060724,22.66271295,169.35,169.26,2.4268]
[1729878060926,22.66271295,169.35,169.26,7.8268]
[1729878061129,22.66271295,169.32,169.26,2.4268]
[1729878061441,22.66271295,169.35,169.24,6.6905]
[1729878061620,2.9532,169.37,169.32,2.9539]
[1729878061820,22.66271295,169.38,169.28,5.4]
[1729878062226,2.9535,169.35,169.29,5.4]
[1729878062420,22.66271295,169.38,169.28,5.4]
[1729878062720,22.66271295,169.35,169.27,5.4]
[1729878063321,22.66271295,169.38,169.27,5.4]
[1729878064027,2.9533,169.36,169.27,5.4]
[1729878064330,2.9533,169.36,169.31,2.954]
[1729878065130,2.9534,169.36,169.27,5.4]
[1729878065422,22.66271295,169.36,169.24,1.2905]
[1729878065631,22.66271295,169.33,169.24,1.2905]
[1729878065827,22.66271295,169.33,169.24,6.6905]
[1729878066621,2.954,169.32,169.27,2.9547]
[1729878066827,28.06271295,169.38,169.24,6.6905]
[1729878067230,2.9536,169.35,169.24,6.6905]
[1729878068024,2.9531,169.37,169.25,22.66271295]
[1729878068425,22.66271295,169.38,169.32,2.9538]
[1729878068426,2.9533,169.36,169.32,2.9538]
[1729878069524,2.9532,169.37,169.32,2.9538]
[1729878070021,2.9532,169.37,169.3,2.4608]
[1729878070022,22.66271295,169.41,169.33,2.9537]
[1729878070236,2.60327774,169.51,169.34,5.4]
[1729878070423,22.66271295,169.46,169.35,5.4]
[1729878070825,2.9522,169.43,169.38,2.9528]
[1729878071038,22.66271295,169.46,169.35,5.4]
[1729878071332,22.66271295,169.46,169.36,1.2736]
[1729878071534,2.9519,169.44,169.36,1.2736]
[1729878071733,22.66271295,169.46,169.36,1.2736]
[1729878072138,2.9518,169.45,169.37,5.36]
[1729878072527,2.9514,169.47,169.43,2.952]
[1729878072725,22.66271295,169.48,169.37,5.36]
[1729878072922,22.66271295,169.51,169.37,5.36]
[1729878073528,22.66271295,169.51,169.38,22.66271295]
[1729878073728,2.951,169.5,169.38,22.66271295]
[1729878073928,22.66271295,169.51,169.39,2.5092]
[1729878074130,5.36,169.54,169.39,2.5092]
[1729878074131,22.66271295,169.48,169.39,2.5092]
[1729878074335,63.8,169.55,169.39,2.5092]
[1729878074336,22.66271295,169.46,169.39,2.5092]
[1729878074544,22.66271295,169.46,169.37,5.36]
[1729878074723,2.9523,169.42,169.38,2.9528]
[1729878074928,22.66271295,169.46,169.37,5.36]
[1729878075733,2.952,169.44,169.38,2.9528]
[1729878076032,22.66271295,169.46,169.37,5.36]
[1729878076344,2.9519,169.44,169.4,2.9524]
[1729878076532,2.9519,169.44,169.38,1.2202]
[1729878076926,2.9517,169.45,169.41,2.9524]
[1729878077144,22.66271295,169.46,169.38,1.2202]
[1729878077336,2.9518,169.45,169.4,2.9526]
[1729878078736,2.9512,169.48,169.43,2.9519]
[1729878079140,22.66271295,169.49,169.38,1.2202]
[1729878079348,25.61381295,169.49,169.44,2.9518]
[1729878079536,22.66271295,169.49,169.42,5.36]
[1729878079731,22.66271295,169.52,169.42,5.36]
[1729878079942,1.0,169.61,169.48,2.951]
[1729878079943,2.9503,169.53,169.48,2.951]
[1729878080135,22.66271295,169.54,169.43,1.2102]
[1729878080438,2.95,169.55,169.5,2.9507]
[1729878080833,28.02271295,169.57,169.48,5.36]
[1729878081040,28.02271295,169.57,169.51,2.9505]
[1729878081041,2.95,169.55,169.51,2.9505]
[1729878081245,22.66271295,169.6,169.48,5.36]
[1729878081454,5.8957,169.68,169.49,2.579]
[1729878081742,22.66271295,169.62,169.49,2.579]
[1729878082138,63.76,169.71,169.5,22.66271295]
[1729878082344,22.66271295,169.66,169.5,22.66271295]
[1729878082535,22.66271295,169.63,169.49,2.579]
[1729878083041,22.66271295,169.66,169.49,2.579]
[1729878083242,2.9488,169.62,169.55,2.9499]
[1729878083437,2.9488,169.62,169.51,22.66271295]
[1729878083438,2.9488,169.62,169.56,5.36]
[1729878083639,2.9488,169.62,169.51,22.66271295]
[1729878083640,22.66271295,169.66,169.52,1.22]
[1729878083939,22.66271295,169.61,169.53,5.36]
[1729878085341,2.9495,169.58,169.53,8.3102]
[1729878085537,2.9495,169.58,169.53,5.36]
[1729878086242,2.9495,169.58,169.54,2.9501]
[1729878086445,2.9495,169.58,169.53,5.36]
[1729878086743,22.66271295,169.59,169.52,1.22]
[1729878086937,22.66271295,169.59,169.52,6.58]
[1729878087333,22.66271295,169.59,169.52,1.22]
[1729878087840,2.9499,169.56,169.52,1.22]
[1729878088440,2.9499,169.56,169.52,4.1704]
[1729878089454,2.9497,169.57,169.53,2.9502]
[1729878090548,2.9495,169.58,169.54,2.95]
[1729878090744,22.66271295,169.59,169.52,1.22]
[1729878091251,25.61211295,169.59,169.55,2.9499]
[1729878091442,25.61211295,169.59,169.52,1.22]
[1729878091747,2.9494,169.59,169.52,1.22]
[1729878091950,2.9485,169.64,169.52,23.88271295]
[1729878092255,28.55641295,169.74,169.52,23.88271295]
[1729878092256,5.8937,169.74,169.59,2.9492]
[1729878092557,22.66271295,169.67,169.59,2.9492]
[1729878092849,2.9485,169.64,169.59,2.9492]
[1729878093037,22.66271295,169.67,169.58,5.36]
[1729878093242,22.66271295,169.64,169.56,5.36]
[1729878093638,2.9492,169.6,169.56,8.3098]
[1729878094647,2.9492,169.6,169.56,2.9498]
[1729878094848,2.9492,169.6,169.56,5.36]
[1729878096047,22.66271295,169.61,169.52,1.22]
[1729878096255,2.9499,169.56,169.52,4.1704]
[1729878097756,2.9493,169.59,169.55,2.9498]
[1729878097956,22.66271295,169.64,169.52,1.22]
[1729878098861,2.949,169.61,169.55,2.9498]
[1729878099161,22.66271295,169.64,169.55,2.9498]
[1729878099350,22.66271295,169.64,169.52,1.22]
[1729878099560,2.949,169.61,169.57,2.9496]
[1729878100456,22.66271295,169.64,169.55,5.36]
[1729878101057,22.66271295,169.64,169.58,2.9493]
[1729878101058,2.9488,169.62,169.58,2.9493]
[1729878101465,2.949,169.61,169.57,2.9495]
[1729878101966,2.949,169.61,169.55,5.36]
[1729878103259,22.66271295,169.64,169.55,5.36]
[1729878103464,2.9488,169.62,169.55,5.36]
[1729878103964,2.9488,169.62,169.58,2.9493]
[1729878104351,2.9488,169.62,169.55,5.36]
[1729878104564,22.66271295,169.67,169.55,5.36]
[1729878105468,22.66271295,169.67,169.59,2.9492]
[1729878105859,2.9487,169.63,169.59,2.9492]
[1729878106059,22.66271295,169.67,169.55,5.36]
[1729878106365,2.9485,169.64,169.55,5.36]
[1729878106962,2.9485,169.64,169.6,2.949]
[1729878107152,2.9484,169.65,169.55,5.36]
[1729878107362,22.66271295,169.69,169.56,22.66271295]
[1729878107557,22.66271295,169.72,169.59,22.66271295]
[1729878107761,22.66271295,169.72,169.57,1.243]
[1729878107762,343.0,169.86,169.64,22.66271295]
[1729878108063,22.66271295,169.78,169.71,2.9471]
[1729878108262,2.9462,169.77,169.71,5.52]
[1729878108462,2.9462,169.77,169.72,2.9469]
[1729878108958,22.66271295,169.81,169.72,2.9469]
[1729878108959,2.9463,169.76,169.72,2.9469]
[1729878109165,2.9463,169.76,169.71,8.4671]
[1729878109770,2.9463,169.76,169.71,5.52]
[1729878110863,2.9463,169.76,169.67,22.66271295]
[1729878110864,22.66271295,169.81,169.67,22.66271295]
[1729878111175,22.66271295,169.78,169.68,5.52]
[1729878111377,22.66271295,169.78,169.69,5.52]
[1729878112569,2.9466,169.75,169.69,8.4675]
[1729878112764,22.66271295,169.81,169.69,5.52]
[1729878113164,22.66271295,169.81,169.69,28.18271295]
[1729878113364,22.66271295,169.84,169.72,22.66271295]
[1729878113562,22.66271295,169.84,169.73,2.601]
[1729878113767,22.66271295,169.84,169.74,5.52]
[1729878113972,5.52,169.87,169.7,1.2047]
[1729878113973,22.66271295,169.81,169.7,1.2047]
[1729878114170,22.66271295,169.81,169.73,5.52]
[1729878114771,2.9463,169.77,169.73,5.52]
[1729878115873,22.66271295,169.84,169.73,5.52]
[1729878116273,5.52,169.86,169.73,5.52]
[1729878116577,2.9456,169.8,169.73,5.52]
[1729878117076,2.9456,169.8,169.75,2.9464]
[1729878117680,2.9452,169.83,169.73,5.52]
[1729878117882,22.66271295,169.89,169.74,22.66271295]
[1729878118778,2.9453,169.83,169.74,22.66271295]
[1729878119272,22.66271295,169.89,169.74,22.66271295]
[1729878120288,2.9453,169.83,169.79,2.9457]
[1729878120586,22.66271295,169.86,169.72,22.66271295]
[1729878120783,22.66271295,169.86,169.73,5.52]
[1729878120978,22.66271295,169.84,169.74,5.52]
[1729878121178,22.66271295,169.81,169.7,1.2047]
[1729878121379,2.9467,169.74,169.73,5.52]
[1729878122278,22.66271295,169.78,169.7,1.2047]
[1729878122472,22.66271295,169.78,169.71,5.52]
[1729878123080,22.66271295,169.81,169.71,5.52]
[1729878123277,2.9465,169.75,169.71,5.52]
[1729878123982,2.9465,169.75,169.71,8.4671]
[1729878125085,22.66271295,169.78,169.68,2.601]
[1729878125275,22.66271295,169.75,169.69,5.52]
[1729878125483,5.52,169.8,169.69,5.52]
[1729878125784,22.66271295,169.81,169.69,5.52]
[1729878125989,2.9466,169.75,169.7,2.9472]
[1729878126986,2.9466,169.75,169.71,2.9471]
[1729878128100,22.66271295,169.81,169.72,2.947]
[1729878128295,22.66271295,169.81,169.65,1.2256]
[1729878128483,22.66271295,169.81,169.65,5.52]
[1729878128484,22.66271295,169.73,169.65,5.52]
[1729878128799,22.66271295,169.73,169.64,5.52]
[1729878128994,2.9478,169.68,169.62,5.52]
[1729878129186,28.18271295,169.73,169.62,5.52]
[1729878129385,22.66271295,169.73,169.62,5.52]
[1729878129584,22.66271295,169.73,169.63,2.5372]
[1729878129895,2.9476,169.69,169.64,2.9484]
[1729878130090,22.66271295,169.73,169.63,2.5372]
[1729878130297,2.9473,169.71,169.66,2.9481]
[1729878130594,22.66271295,169.78,169.64,22.66271295]
[1729878130786,5.52,169.79,169.67,5.52]
[1729878130986,2.9464,169.76,169.68,6.7997]
[1729878131187,22.66271295,169.81,169.68,6.7997]
[1729878132292,2.9465,169.75,169.68,6.7997]
[1729878132486,22.66271295,169.81,169.68,6.7997]
[1729878132990,2.9463,169.77,169.73,2.9467]
[1729878133198,2.9463,169.77,169.73,8.6667]
[1729878133593,213.51217848,169.89,169.73,5.72]
[1729878133594,22.66271295,169.84,169.73,5.72]
[1729878133793,22.66271295,169.84,169.75,2.9464]
[1729878133997,22.66271295,169.84,169.74,2.5217]
[1729878135494,22.66271295,169.84,169.76,2.9463]
[1729878136992,22.66271295,169.86,169.77,2.9461]
[1729878137192,22.66271295,169.86,169.78,5.72]
[1729878137393,2.9462,169.77,169.75,5.72]
[1729878137788,22.66271295,169.84,169.75,5.72]
[1729878137997,2.946,169.79,169.75,5.72]
[1729878138998,22.66271295,169.84,169.75,8.6664]
[1729878138999,2.9458,169.8,169.75,8.6664]
[1729878139695,2.946,169.78,169.75,5.72]
[1729878139899,22.66271295,169.84,169.75,5.72]
[1729878140199,22.66271295,169.84,169.69,2.5986]
[1729878140400,5.72,169.88,169.69,2.5986]
[1729878140401,22.66271295,169.81,169.7,5.72]
[1729878141101,22.66271295,169.81,169.69,2.5986]
[1729878141300,22.66271295,169.81,169.7,5.72]
[1729878141709,2.9466,169.75,169.7,8.6672]
[1729878142298,22.66271295,169.81,169.69,2.5986]
[1729878142299,22.66271295,169.78,169.69,2.5986]
[1729878142500,22.66271295,169.78,169.69,8.3186]
[1729878142900,2.9472,169.71,169.67,66.5879]
[1729878143090,22.66271295,169.75,169.67,69.36]
[1729878143297,2.9477,169.69,169.67,5.72]
[1729878144193,22.66271295,169.75,169.67,5.72]
[1729878144601,28.38271295,169.78,169.67,5.72]
[1729878144798,2.9462,169.77,169.67,5.72]
[1729878145000,22.66271295,169.81,169.68,2.5317]
[1729878145397,2.9464,169.76,169.69,1.2657]
[1729878145704,22.66271295,169.81,169.71,2.9472]
[1729878145893,2.9464,169.76,169.72,5.72]
[1729878146203,22.66271295,169.81,169.74,2.9466]
[1729878146412,22.66271295,169.81,169.72,5.72]
[1729878146603,2.9463,169.77,169.72,5.72]
[1729878146908,22.66271295,169.81,169.72,5.72]